Cogmind - Beta 13 @@@ ROGUE MODE // 2024.05.21 @ 23:42:48 Player: BatSpy Result: Core destroyed Performance ------------- Evolutions (3) 1500 Regions Visited (5) 1000 Robots Destroyed (35) 175 Value Destroyed (1259) 1259 Prototype IDs (12) 240 Alien Tech Used (0) 0 Bonus (500) 500 TOTAL SCORE: 4674 Bonus ------- Entered DSFs 500 Cogmind --------- Core Integrity 0/700 Matter 224/300 Energy 166/290 System Corruption 15% Temperature Critical (834) Movement Flying (1175) Ox14 Location -7/DSF Parts ------- > --- POWER (2) -------- Improved Deuterium Engine > --- PROPULSION (5) --- Light Treads VTOL Module > --- UTILITY (3) ------ Structural Scanner Medium Reactive Plating Medium Reactive Plating > --- WEAPON (3) ------- EM Pulse Cannon > --- INVENTORY (5) ---- VTOL Module Kinecellerator Improved Hacking Suite Improved Hacking Suite Peak State ------------ > --- POWER ------------ Ion Engine Light Deuterium Engine Nuclear Core Light Nuclear Core > --- PROPULSION ------- Improved Hover Unit Aerolev Unit Aerolev Unit > --- UTILITY ---------- Terrain Scanner ECM Suite Power Bank > --- WEAPON ----------- Heavy EM Shotgun Heavy EM Shotgun Ion Cannon > --- INVENTORY -------- Airjet Structural Scanner Ion Cannon Grenade Launcher [Rating: 42] Favorites ----------- Power Light Ion Engine Engine Light Ion Engine Power Core Nuclear Core Propulsion Compact Wheel Treads Medium Treads Leg Flexi-carbon Leg Wheel Compact Wheel Hover Unit Aerolev Unit Flight Unit VTOL Module Utility Scrap Shield Device Structural Scanner Protection Scrap Shield Weapon Grenade Launcher Energy Gun Heavy EM Shotgun Energy Cannon Ion Cannon Ballistic Gun Assault Rifle Ballistic Cannon Battle Cannon Launcher Grenade Launcher Build | -11 -10 -10 -8 -7 -7 ------- Run | Yrd Mat Sub Mat Fac DSF Slots Evolved 6 | . . . 4 2 . Power 1 | . . . 1 . . Propulsion 3 | . . . 1 2 . Utility 1 | . . . 1 . . Weapon 1 | . . . 1 . . Parts Attached 71 | 5 5 4 29 3 25 Power 10 | 1 1 . 4 . 4 Engine 7 | 1 1 . 2 . 3 Core 3 | . . . 2 . 1 Reactor . | . . . . . . Propulsion 26 | 2 . . 13 . 11 Treads 10 | . . . 2 . 8 Leg 4 | . . . 2 . 2 Wheel 3 | 2 . . 1 . . Hover 8 | . . . 8 . . Flight 1 | . . . . . 1 Utility 16 | . 2 1 5 3 5 Device 11 | . 2 . 5 3 1 Storage . | . . . . . . Processor . | . . . . . . Hackware . | . . . . . . Protection 5 | . . 1 . . 4 Artifact . | . . . . . . Weapon 19 | 2 2 3 7 . 5 Energy Gun 4 | 1 1 . 2 . . Energy Cannon 8 | . . . 4 . 4 Ballistic Gun 2 | 1 . 1 . . . Ballistic Cannon 1 | . . 1 . . . Launcher 4 | . 1 1 1 . 1 Special Weapon . | . . . . . . Impact Weapon . | . . . . . . Slashing Weapon . | . . . . . . Piercing Weapon . | . . . . . . Special Melee Weapon . | . . . . . . Unidentified Prototypes 2 | . . . 2 . . Corrupted Parts 2 | . . . . . 2 System Corruption 12 | . . . . . 12 Parts Lost 32 | . . . 20 . 12 Power 5 | . . . 5 . . Propulsion 12 | . . . 6 . 6 Utility 6 | . . . 4 . 2 Weapon 9 | . . . 5 . 4 Highest Loss Streak 13 | . . . 13 . 6 To Critical Strikes 1 | . . . . . 1 Average Slot Usage (%) 71 | . 93 85 69 17 62 Engine 8 | . 14 14 7 . 2 Core 2 | . . . 7 . 1 Treads 5 | . . . 2 . 21 Wheel 12 | . 28 28 3 . . Hover 3 | . . . 11 . . Device 10 | . 21 . 15 17 13 Protection 7 | . . 13 1 . 7 Energy Gun 2 | . 13 . 5 . . Energy Cannon 4 | . . . 10 . 7 Ballistic Gun 4 | . 14 11 . . . Ballistic Cannon 1 | . . 2 . . . Launcher 6 | . . 14 3 . 3 Naked Turns 1 | . . . 1 . . Heaviest Build 67 | 7 10 27 46 5 67 Greatest Support 112 | 32 32 32 40 3 112 Greatest Overweight (x) 14 | . . . 10 1 14 Average Overweight (x) . | . . . . . . Largest Inventory Capacity 5 | 5 5 5 5 5 5 Average Capacity 5 | 5 5 5 5 5 5 Most Carried 5 | 5 5 5 5 5 5 Average Carried 3 | 2 4 4 4 3 2 Final Capacity 5 | 5 5 5 5 5 5 Final Carried 5 | 3 5 5 4 3 4 Class Distribution -------------------- 77% | Mutant 11% | Skirmisher 10% | Bomber Dominant Class ---------------- Mutant | -10/Materials Mutant | -10/Subcaves Skirmisher | -8/Materials Mutant | -7/Factory Mutant | -7/DSF Resources | -11 -10 -10 -8 -7 -7 ----------- Run | Yrd Mat Sub Mat Fac DSF Matter Collected 1059 | 234 61 223 368 20 153 Remotely . | . . . . . . Salvage Created 1111 | . 42 240 483 . 346 Parts 70 | . 4 17 30 . 19 Haulers Intercepted . | . . . . . . Recyclers Shooed . | . . . . . . Parts Field Recycled . | . . . . . . Retrieved Matter . | . . . . . . Parts Self-Destructed 6 | . . 6 . . . Prevented . | . . . . . . Kills | -11 -10 -10 -8 -7 -7 ------- Run | Yrd Mat Sub Mat Fac DSF Combat Hostiles Destroyed 33 | . 3 10 10 . 10 Melee 3 | . . . . . 3 Guns 7 | . 3 3 1 . . Cannons 16 | . . . 9 . 7 AOE 7 | . . 7 . . . Classes Destroyed 7 | . 1 1 4 . 1 Watcher 2 | . . . 2 . . Swarmer 13 | . 3 2 3 . 5 Grunt 5 | . . . 5 . . Duelist 1 | . . . 1 . . Sentry 2 | . . . 1 . 1 Specialist 4 | . . . . . 4 Subdweller 8 | . . 8 . . . Best Kill Streak 7 | . 3 7 3 . 4 Combat Bots Only 7 | . 3 7 3 . 4 Max Kills in Single Turn 2 | . 1 2 1 . 2 Gunslinging . | . . . . . . Exploded 2 | . . 2 . . . Melee 1 | . . . . . 1 Uniques/NPCs Destroyed . | . . . . . . Combat | -11 -10 -10 -8 -7 -7 -------- Run | Yrd Mat Sub Mat Fac DSF Hostile Shots Fired 416 | . 15 27 174 . 200 Missed 97 | . 4 12 32 . 49 Damage Taken 5171 | . 94 293 2020 . 2764 Core 1290 | . 17 19 532 . 722 Absorbed by Shields . | . . . . . . Ignored by Resistances 5 | . . . . . 5 Core Remaining (%) 62 | 100 . 85 3 . . Volleys Fired 97 | . 6 27 44 . 20 Largest 3 | . 2 2 3 . 3 Hottest 189 | . 70 50 160 . 189 Shots Fired 149 | . 12 32 73 . 32 Gun 45 | . 11 18 16 . . Cannon 90 | . . 4 57 . 29 Launcher 14 | . 1 10 . . 3 Special . | . . . . . . Kinetic 33 | . 6 22 5 . . Thermal 65 | . 5 . 52 . 8 Explosive 14 | . 1 10 . . 3 Electromagnetic 37 | . . . 16 . 21 Robot Hit Streak 7 | . 6 5 5 . 7 Robot Miss Streak 7 | . 3 1 7 . 3 Penetration Max . | . . . . . . Secondary Targets 1 | . 1 . . . . Max Gunslinging Chain 1 | . 1 . . . . Shots Hit Robots 78 | . 6 14 39 . 19 Core Hits 59 | . 3 22 20 . 14 Critical Kills . | . . . . . . Critical Parts Destroyed . | . . . . . . Critical Strikes 1 | . . . 1 . . Blast 1 | . . . 1 . . Melee Attacks . | . . . . . . Impact . | . . . . . . Slashing . | . . . . . . Piercing . | . . . . . . Sneak Attacks . | . . . . . . Combat Hostiles . | . . . . . . Follow-up Attacks . | . . . . . . Damage Inflicted 3115 | . 71 1409 1018 . 617 Guns 472 | . 71 90 311 . . Cannons 1099 | . . . 655 . 444 Explosions 1519 | . . 1319 52 . 148 Melee . | . . . . . . Ramming 25 | . . . . . 25 Kinetic 228 | . 34 90 104 . . Thermal 847 | . 37 . 603 . 207 Explosive 1422 | . . 1319 . . 103 Electromagnetic 593 | . . . 311 . 282 Impact . | . . . . . . Slashing . | . . . . . . Piercing . | . . . . . . Highest Corruption 15 | . . . 3 1 15 Average Corruption 2 | . . . 3 1 3 Corruption Purged . | . . . . . . Corruption Blocked . | . . . . . . Effects 12 | . . . 6 . 6 Message Errors 2 | . . . 1 . 1 Matter Fused 2 | . . . 1 . 1 Heat Flow Errors 2 | . . . 1 . 1 Energy Discharges 2 | . . . 1 . 1 Parts Rejected 1 | . . . 1 . . Data Loss (minor) 3 | . . . 1 . 2 Overload Shots . | . . . . . . Overflow Damage 3 | . . . 3 . . Projectiles 3 | . . . 3 . . Explosions . | . . . . . . Melee . | . . . . . . Knockbacks . | . . . . . . Impact . | . . . . . . Kinetic . | . . . . . . Secondary . | . . . . . . Self-Inflicted Damage 90 | . . . 39 . 51 Shots 3 | . . . 1 . 2 Rammed 5 | . . . . . 5 Targets Rammed 19 | . . . . . 19 Kicked 12 | . . . . . 12 Crushed 2 | . . . . . 2 Highest Temperature 834 | . 45 . 463 . 834 Average Temperature 195 | . 22 . 203 . 205 Received Heat Transfer 1431 | . . 45 1125 . 261 Effects 25 | . . . 14 . 11 Shutdowns 8 | . . . 6 . 2 Energy Bleed 4 | . . . 1 . 3 Interference 2 | . . . 2 . . Matter Decay 4 | . . . 3 . 1 Short Circuit 3 | . . . 2 . 1 Damage (minor) 2 | . . . . . 2 Damage (core) 2 | . . . . . 2 Siege Activations . | . . . . . . Robots Corrupted . | . . . . . . Combat Hostiles . | . . . . . . Parts Fried 4 | . . . 2 . 2 Impact Corruptions . | . . . . . . Robots Melted . | . . . . . . Combat Hostiles . | . . . . . . Parts Melted 2 | . . . 2 . . Heat Transferred 1408 | . 111 . 938 . 359 Parts Sabotaged . | . . . . . . Parts Stolen . | . . . . . . Parts Stripped . | . . . . . . Power Chain Reactions 2 | . . . 1 . 1 Alert | -11 -10 -10 -8 -7 -7 ------- Run | Yrd Mat Sub Mat Fac DSF Peak Influence 226 | . 76 . 226 9 217 Initial 9 | . . . . 9 6 Average 81 | . 41 . 94 9 104 Maximum Alert Level 1 | . . . 1 . 1 Low Security (%) 89 | 100 100 . 89 100 82 Level 1 10 | . . . 10 . 17 Level 2 . | . . . . . . Level 3 . | . . . . . . Level 4 . | . . . . . . Level 5 . | . . . . . . High Security . | . . . . . . Max Security . | . . . . . . Sterilizations 1 | . . . . . 1 Squads Dispatched 5 | . . . 2 . 3 Investigation 1 | . . . 1 . . Extermination . | . . . . . . Reinforcement 4 | . . . 1 . 3 Assault . | . . . . . . Garrison . | . . . . . . Intercept . | . . . . . . Searches Triggered . | . . . . . . Construction Impeded . | . . . . . . Haulers Reinforced . | . . . . . . Active Scanning Responses . | . . . . . . Cargo Convoy Interrupts . | . . . . . . Stealth | -11 -10 -10 -8 -7 -7 --------- Run | Yrd Mat Sub Mat Fac DSF Distress Signals . | . . . . . . Communications Jammed . | . . . . . . Distress Signals . | . . . . . . Times Spotted 63 | . 3 17 26 . 17 Peak Tracking Total 10 | . 3 10 9 . 7 Tactical Retreats 5 | . . . 3 . 2 Traps | -11 -10 -10 -8 -7 -7 ------- Run | Yrd Mat Sub Mat Fac DSF Traps Triggered 2 | . . . 1 1 . Indirectly . | . . . . . . Trap Hack Attempts . | . . . . . . Triggered . | . . . . . . Disarmed . | . . . . . . Reprogrammed . | . . . . . . Reused . | . . . . . . Traps Extracted . | . . . . . . Installed . | . . . . . . Triggered . | . . . . . . Machines | -11 -10 -10 -8 -7 -7 ---------- Run | Yrd Mat Sub Mat Fac DSF Machines Disabled 5 | . . 1 3 . 1 Max in Single Turn 1 | . . 1 1 . 1 Machines Repaired . | . . . . . . Machines Dismantled . | . . . . . . Machines Sabotaged . | . . . . . . Overloaded Fab Kills . | . . . . . . Hacking | -11 -10 -10 -8 -7 -7 --------- Run | Yrd Mat Sub Mat Fac DSF Machines Accessed 4 | . . 2 1 1 . Terminals 1 | . . . . 1 . Fabricators . | . . . . . . Repair Stations . | . . . . . . Recycling Units 1 | . . . 1 . . Scanalyzers . | . . . . . . Garrison Access . | . . . . . . Total Hacks 16 | . . 13 2 1 . Successful 16 | . . 13 2 1 . Failed . | . . . . . . Catastrophic . | . . . . . . Database Lockouts . | . . . . . . Manual 4 | . . 4 . . . Terminals 1 | . . . . 1 . Fabricators . | . . . . . . Repair Stations . | . . . . . . Recycling Units 2 | . . . 2 . . Scanalyzers . | . . . . . . Garrison Access . | . . . . . . Terminal Hacks 14 | . . 13 . 1 . Record 12 | . . 12 . . . Open DSF 1 | . . . . 1 . Derelict Proto ID Bank 1 | . . 1 . . . Fabricator Hacks . | . . . . . . Repair Station Hacks . | . . . . . . Recycling Unit Hacks 2 | . . . 2 . . Report Inventory 1 | . . . 1 . . Retrieve Components 1 | . . . 1 . . Scanalyzer . | . . . . . . Garrison Access Hacks . | . . . . . . Unauthorized Hacks . | . . . . . . Terminals . | . . . . . . Fabricators . | . . . . . . Repair Stations . | . . . . . . Recycling Units . | . . . . . . Scanalyzers . | . . . . . . Garrison Access . | . . . . . . Data Cores Recovered . | . . . . . . Used . | . . . . . . Hacking Detections . | . . . . . . Full Trace Events . | . . . . . . Feedback Events . | . . . . . . Feedback Blocked . | . . . . . . Robot Schematics Acquired . | . . . . . . Robots Built . | . . . . . . Authchips . | . . . . . . Time . | . . . . . . Total Robot Build Rating . | . . . . . . Part Schematics Acquired . | . . . . . . Parts Built . | . . . . . . Authchips . | . . . . . . Time . | . . . . . . Total Part Build Rating . | . . . . . . Parts Repaired . | . . . . . . Time . | . . . . . . Parts Recycled . | . . . . . . Recycled Matter . | . . . . . . Retrieved Matter . | . . . . . . Retrieved Components 9 | . . . 9 . . Parts Scanalyzed . | . . . . . . Part Schematics Acquired . | . . . . . . Parts Damaged . | . . . . . . Bothacking | -11 -10 -10 -8 -7 -7 ------------ Run | Yrd Mat Sub Mat Fac DSF Used RIF Installer . | . . . . . . Robots Hacked . | . . . . . . Non-combat . | . . . . . . Combat . | . . . . . . Robot Hacks Applied . | . . . . . . Relay Couplers Released . | . . . . . . Fabnet Peak Effective % . | . . . . . . Robots Rewired . | . . . . . . Allies Hacked . | . . . . . . Hacks Repelled . | . . . . . . Allies | -11 -10 -10 -8 -7 -7 -------- Run | Yrd Mat Sub Mat Fac DSF Total Allies . | . . . . . . Largest Group . | . . . . . . Highest-Rated Group . | . . . . . . Highest-Rated Ally . | . . . . . . Total Orders . | . . . . . . Ally Attacks . | . . . . . . Total Damage . | . . . . . . Kills . | . . . . . . Allies Corrupted . | . . . . . . Allies Melted . | . . . . . . Intel | -11 -10 -10 -8 -7 -7 ------- Run | Yrd Mat Sub Mat Fac DSF Robot Analysis Total . | . . . . . . Derelict Logs Recovered 1 | . . 1 . . . Drone Launches . | . . . . . . Drone Recoveries . | . . . . . . Exploration | -11 -10 -10 -8 -7 -7 ------------- Run | Yrd Mat Sub Mat Fac DSF Turns Passed 2383 | 51 148 846 700 146 492 Spaces Moved 1705 | 45 115 760 404 195 186 Core 261 | 13 . . 40 195 13 Treads 189 | . . . 56 . 133 Legs 40 | . . . 4 . 36 Wheels 996 | 32 115 760 89 . . Hover 215 | . . . 215 . . Flight 4 | . . . . . 4 Fastest Speed 45 | 50 100 100 45 50 100 Average Speed 110 | 85 100 100 122 66 185 Slowest Speed 1175 | 100 100 100 550 100 1175 Overloaded Moves . | . . . . . . Propulsion Burnouts . | . . . . . . Robots Hopped . | . . . . . . Cave-ins Triggered . | . . . . . . Exploration Rate (%) 26 | 3 23 41 27 4 63 Regions Visited 5 Branch Regions 1 Pre-discovered Areas . | . . . . . . Known Exits Taken 1 | . . . . 1 . Unknown Exits Taken 4 | 1 1 1 1 . . Scrap Searched . | . . . . . . Spaces Dug 6 | . 6 . . . . Terrain Destroyed 107 | . 6 51 33 . 17 Melee . | . . . . . . Projectile 5 | . . . 5 . . AOE 102 | . 6 51 28 . 17 Terrain Rammed . | . . . . . . Walls Destroyed . | . . . . . . Machines Disabled . | . . . . . . Actions | -11 -10 -10 -8 -7 -7 --------- Run | Yrd Mat Sub Mat Fac DSF Total 2049 | 57 135 818 537 210 292 Wait 58 | . 6 1 30 9 12 Move 1700 | 44 114 759 403 194 186 Hop . | . . . . . . Pick Up 63 | 8 3 7 17 3 25 Fast Attach 11 | . 1 1 8 . 1 Attach 42 | 5 1 . 12 3 21 Detach 4 | . . 2 2 . . Swap 18 | . 3 3 9 . 3 Drop 28 | . 1 9 12 1 5 Fire 97 | . 6 27 44 . 20 Melee . | . . . . . . Ram 1 | . . . . . 1 Kick 12 | . . . . . 12 Crush 6 | . . . . . 6 Escape Stasis . | . . . . . . Rewire . | . . . . . . Trap . | . . . . . . Miscellaneous 9 | . . 9 . . . Route ------- -11/Scrapyard -10/Materials (discovered 2 exits: [*Mat] / *Sub) -10/Subcaves (discovered 2 exits: *Mat x2) -8/Materials -7/Factory (discovered 2 exits: [*Fac] / DSF) -7/DSF History --------- Turn | Location | Event 8 | -11/Scrapyard | Discovered new exit (range 16) 52 | -11/Scrapyard | Entered Materials 130 | -10/Materials | Discovered new exit (range 8) 173 | -10/Materials | Discovered new exit (range 8) 200 | -10/Materials | Entered Subcaves 281 | -10/Subcaves | Ambushed by swarm of Subdwellers 281 | -10/Subcaves | Ambushed by Subdwellers from Twisted Machinery 281 | -10/Subcaves | Ambushed by Subdwellers from Twisted Machinery 281 | -10/Subcaves | Ambushed by Subdwellers from Twisted Machinery 282 | -10/Subcaves | Ambushed by Subdwellers from Twisted Machinery 290 | -10/Subcaves | Ambushed by Subdweller buried in earth 290 | -10/Subcaves | Ambushed by Subdweller buried in earth 314 | -10/Subcaves | Destroyed 7 combat bots 323 | -10/Subcaves | Build established: Mutant 378 | -10/Subcaves | Shifting Twisted Machinery released Battle Cannon 382 | -10/Subcaves | Shifting Twisted Machinery released Battle Cannon 634 | -10/Subcaves | Discovered new exit (range 6) 650 | -10/Subcaves | Discovered new exit (range 16) 835 | -10/Subcaves | Learned Materials emergency access door positions 850 | -10/Subcaves | Visited 4L-MR0's lab 889 | -10/Subcaves | Found Power Bank 915 | -10/Subcaves | A swath of the cavern ceiling suddenly collapsed 1039 | -10/Subcaves | Visited Clippyterm 1046 | -10/Subcaves | Entered Materials 1046 | -8/Materials | Evolved 4 slots: Power x1, Propulsion x1, Utility x1, Weapon x1 1047 | -8/Materials | Attached Power Bank, gained temporary slots: Power x3 1245 | -8/Materials | Lost 3 parts (1p1n1u) 1448 | -8/Materials | Lost 4 parts (1n1u2w) 1724 | -8/Materials | Core integrity fell below 50% 1738 | -8/Materials | Discovered new exit (range 16) 1742 | -8/Materials | Core integrity fell below 20% 1746 | -8/Materials | Entered Factory 1746 | -7/Factory | Evolved 2 slots: Propulsion x2 1776 | -7/Factory | Lost 13 parts (4p4n2u3w) 1784 | -7/Factory | Discovered new exit (range 12) 1892 | -7/Factory | Identified exit to DSF 1892 | -7/Factory | Entered DSF 1928 | -7/DSF | Additional patrols routed to DSF 2214 | -7/DSF | Lost 6 parts (3n1u2w) 2238 | -7/DSF | Core integrity fell below 50% 2282 | -7/DSF | Sterilization system engaged 2294 | -7/DSF | System corruption reached 10% 2302 | -7/DSF | Ambient heat levels rising (+10) 2315 | -7/DSF | Lost 4 parts (1n1u2w) 2317 | -7/DSF | Ambient heat levels rising (+10) 2332 | -7/DSF | Ambient heat levels rising (+10) 2347 | -7/DSF | Ambient heat levels rising (+10) 2362 | -7/DSF | Ambient heat levels rising (+10) 2377 | -7/DSF | Ambient heat levels rising (+10) 2382 | -7/DSF | Core integrity fell below 20% 2385 | -7/DSF | Core destroyed Last Messages --------------- P-60 Hacker heat short circuits Target Analyzer. P-60 Hacker heat damages core (-8). P-60 Hacker heat short circuits Shock Rifle. P-60 Hacker heat short circuits Imp. Heat Sink. ALERT: Ambient heat levels +10. Overheating: Energy bleed (-49). Overheating: Energy bleed (-59). Power failure, Imp. Deuterium Engine shutdown. Overheating: Lgt. Treads damaged (-20). System corrupted: Energy discharge (-87). EM Pulse Cannon broken. Overheating: Short circuit. ALERT: Ambient heat levels +10. Overheating: Energy bleed (-27). Overheating: Structural Scanner damaged (-9). Overheating: Matter decay (-36). Overheating: Core damaged (-84). Acquired VTOL Module. Power failure, Imp. Deuterium Engine shutdown. Overheating: Core damaged (-133). Map ----- +----------------------------------------------------+ | | | | | | | | | ??????????????????????????????????? | | ??????????????????????????????????? | | ??????????????????????????????????? | | ??????????????????????????????????? | | ?????????""???????????????????????? | | ?????????#"#??????????????????????? | | ??????####"##???????############### | | ??????#"""""#########!* !!####### | | ??????#"""""##!!# #!! !!#===# | | ????"##"" % = | | ????""""" | | ?????##"" ##!!# ### ###===#== | | ??????### ###!!# ### ###===#== | | ???????## ##########!! ####### | | ???????#! !!#??????#!! #??#### | | ???????#! !!#?####?#!! #?????# | | ???????## ##### #?### ###?????# | | ???????# !!#%# #???* !???????# | | ???????# !=*%%%##???* !!??????# | | ???????# !!##! #??** !!??????# | | ??????###[ ########??## ###?????# | | ??????# =%@#??????????# #??????? | | ??????# ][%#??????????? ????????? | | ??????#!!== ??????????????? | | ??????#!!= %[ " ?H????? | | ?????#;!!% =% "%" ??? | | ?????##]]= #; "!!!## ? ##!!!# | | ??????#]] ## #!!!#???????#!??# | | ??????### #?##/#?###???????????### | | ????????! !??? #?????????????????? | | ????????! !!??? ?????????????????? | | ????????! !!????[????????????????? | | ????????# ###???[#???????????????? | | ???????? %!??????????????????????? | | ???????? !??????????????????????? | | ????????# #??????????????????????? | | ????????? #??????????????????????? | | ????????? ???????????????????????? | | ??????????????????????????????????? | | ??????????????????????????????????? | | ??????????????????????????????????? | | ??????????????????????????????????? | | ??????????????????????????????????? | | ??????????????????????????????????? | | ??????????????????????????????????? | | ??????????????????????????????????? | +----------------------------------------------------+ Best States ------------- Heat Dissipation 45 Energy Generation 37 Energy Capacity 490 Matter Stores 300 Matter Capacity 300 Sight Range 16 Terrain Scan Range 14 Terrain Scan Density 10 ECM Strength 1 Armor Coverage 800 Resistance: KI 30 Evasion (%) 55 Recoil Reduction 4 Item Schematics ----------------- None Robot Schematics ------------------ None Fabricated ------------ Nothing Alien Tech Used ----------------- None Achievements -------------- None Challenges ------------ None Game ------ Seed GrapheneThrowingProjector Manual? 0 Play Time 00:31:20 Cumulative 18.4 hours Start 2024.05.21 @ 23:11:40 End 2024.05.21 @ 23:42:48 Sessions 1 Manual Loads 0 Difficulty Rogue Special Mode None Game No. 34 Rogue 34 Adventurer 0 Explorer 0 Win Type - Total 0 Types 0/0/0/0/0/0/0/0/0 Lore% 22 Gallery% 29 Achievement% 23 Wizard Run 0 Options --------- Layout 1 ASCII 0 Keyboard 0 Movement Mouse Keybinds 0 Fullscreen 2 Font 32/SmallcapsGlow Map View 50x35 Zoom Use 0% Tactical HUD 0 Map Filters NONE Filters NONE Steam 1 RUN: 31111984-1ea6-43f1-baca-8d1aea9646be